Cogmind - Beta 17.1 @@@ ROGUE MODE // 2026.09.15 @ 00:23:23 Player: 7H-NLC Result: Destroyed by PN-3JW(R) with Subdweller Machine Gun Performance ------------- Evolutions (0) 0 Regions Visited (2) 400 Robots Destroyed (24) 120 Value Destroyed (496) 496 Prototype IDs (16) 320 Alien Tech Used (0) 0 Bonus (0) 0 TOTAL SCORE: 1336 Bonus ------- None Cogmind --------- Core Integrity 0/250 Matter 268/300 Energy 98/100 System Corruption 0% Temperature Cool (0) Movement Treading (160) Location -10/Subcaves Parts ------- > --- POWER (1) -------- (None) > --- PROPULSION (2) --- Light Treads Light Treads > --- UTILITY (2) ------ Large Storage Unit Improved Terrain Scanner > --- WEAPON (2) ------- Improved Light Cannon Makeshift Sword > --- INVENTORY (15) --- Wheel Flightbrick High-capacity Matter Pod (0) Scrap Shield Subdweller Laser Light EM Pulse Cannon Subdweller Machine Gun Improved Light Cannon Mini Grenade Launcher Mini Grenade Launcher Mini Grenade Launcher Peak State ------------ > --- POWER ------------ (None) > --- PROPULSION ------- Light Treads Light Treads > --- UTILITY ---------- Large Storage Unit Improved Terrain Scanner > --- WEAPON ----------- Improved Light Cannon Makeshift Sword > --- INVENTORY -------- Wheel Flightbrick High-capacity Matter Pod Scrap Shield Subdweller Laser Light EM Pulse Cannon Subdweller Machine Gun Improved Light Cannon Mini Grenade Launcher Mini Grenade Launcher Mini Grenade Launcher [Rating: 17] Favorites ----------- Power Ion Engine Engine Ion Engine Propulsion Light Treads Treads Light Treads Wheel Wheel Utility Large Storage Unit Device Improved Terrain Scanner Storage Large Storage Unit Processor Improved Targeting Computer Weapon Improved Light Cannon Energy Gun Medium Laser Energy Cannon Light EM Pulse Cannon Ballistic Gun Assault Rifle Ballistic Cannon Improved Light Cannon Launcher Mini Grenade Launcher Special Weapon Mining Laser Slashing Weapon Makeshift Sword Build | -11 -10 -10 ------- Run | Yrd Mat Sub Slots Evolved . | . . . Power . | . . . Propulsion . | . . . Utility . | . . . Weapon . | . . . Parts Attached 25 | 7 6 12 Power 2 | 1 1 . Engine 2 | 1 1 . Core . | . . . Reactor . | . . . Propulsion 6 | 2 2 2 Treads 2 | 2 . . Leg . | . . . Wheel 4 | . 2 2 Hover . | . . . Flight . | . . . Utility 5 | 2 1 2 Device 2 | 1 . 1 Storage 2 | 1 1 . Processor 1 | . . 1 Hackware . | . . . Protection . | . . . Artifact . | . . . Weapon 12 | 2 2 8 Energy Gun 1 | 1 . . Energy Cannon 2 | . . 2 Ballistic Gun 1 | 1 . . Ballistic Cannon 4 | . . 4 Launcher 2 | . 1 1 Special Weapon 1 | . 1 . Impact Weapon . | . . . Slashing Weapon 1 | . . 1 Piercing Weapon . | . . . Special Melee Weapon . | . . . Unidentified Prototypes . | . . . Parts Lost 8 | . 3 5 Power 2 | . 1 1 Propulsion 2 | . . 2 Utility 1 | . 1 . Weapon 3 | . 1 2 Highest Loss Streak 3 | . 2 3 To Critical Strikes 1 | . . 1 Average Backups 10 | 1 7 11 Power . | . . . Propulsion 1 | 1 2 1 Utility 1 | . 1 2 Weapon 6 | . 3 7 Tool/Special . | . . . Unused Backups 8 | . . 8 Power . | . . . Propulsion 1 | . . 1 Utility 2 | . . 2 Weapon 5 | . . 5 Tool/Special . | . . . Average Slot Usage (%) 85 | . 99 81 Engine 4 | . 14 1 Treads 15 | . 27 12 Wheel 12 | . . 14 Device 12 | . 13 12 Storage 14 | . 14 14 Processor 1 | . . 1 Energy Cannon 1 | . . 1 Ballistic Gun 4 | . 14 1 Ballistic Cannon 15 | . . 18 Launcher 2 | . 7 1 Peak Build Rating 17 | 7 9 17 Average Rating 10 | 5 8 11 On Entrance 4 | . 7 7 Avg Prop Armor Cover (%) 13 | . . 13 Naked Turns . | . . . Heaviest Build 32 | 15 29 32 Greatest Support 40 | 40 40 40 Greatest Overweight (x) 2 | 2 . 2 Average Overweight (x) . | . . 1 Largest Inventory Capacity 15 | 8 15 15 Average Capacity 13 | 7 9 15 Most Carried 15 | 4 15 15 Average Carried 11 | 1 7 12 Final Capacity 15 | 8 15 15 Final Carried 15 | 4 15 15 Class Distribution -------------------- 100% | Mutant Dominant Class ---------------- Mutant | -10/Materials Mutant | -10/Subcaves Resources | -11 -10 -10 ----------- Run | Yrd Mat Sub Matter Collected 889 | 252 197 440 Remotely . | . . . Salvage Created 395 | 46 184 165 Parts 41 | 11 17 13 Haulers Intercepted . | . . . Recyclers Shooed 1 | 1 . . Parts Field Recycled . | . . . Retrieved Matter . | . . . Parts Self-Destructed 2 | . . 2 Prevented . | . . . Parts Restored . | . . . Kills | -11 -10 -10 ------- Run | Yrd Mat Sub Combat Hostiles Destroyed 18 | . 12 6 Melee 1 | . . 1 Cannons 3 | . . 3 AOE 14 | . 12 2 Classes Destroyed 6 | 1 4 1 Worker 1 | . 1 . Tunneler 3 | 3 . . Recycler 2 | . 2 . Swarmer 9 | . 9 . Grunt 3 | . 3 . Subdweller 6 | . . 6 Best Kill Streak 4 | 2 4 2 Combat Bots Only 3 | . 3 2 Max Kills in Single Turn 3 | 1 3 1 Gunslinging . | . . . Exploded 3 | . 3 1 Melee 1 | . . 1 Uniques/NPCs Destroyed . | . . . Combat | -11 -10 -10 -------- Run | Yrd Mat Sub Hostile Shots Fired 73 | . 31 42 Missed 23 | . 11 12 Hits 50 | . 20 30 Projectile 50 | . 20 30 AOE 6 | . . 6 Critical Strikes 2 | . 1 1 Damage Taken 1182 | . 368 814 Core 266 | . 44 222 Absorbed by Shields . | . . . Core Remaining (%) 100 | 100 . . Volleys Fired 74 | 5 20 49 Largest 2 | 2 1 2 Hottest 100 | 70 100 66 Shots Fired 87 | 10 20 57 Gun 10 | 10 . . Cannon 53 | . . 53 Launcher 23 | . 19 4 Special 1 | . 1 . Kinetic 53 | 5 . 48 Thermal 6 | 5 1 . Explosive 23 | . 19 4 Electromagnetic 5 | . . 5 Robot Hit Streak 15 | 2 4 15 Robot Miss Streak 2 | 1 1 2 Penetration Max . | . . . Secondary Targets . | . . . Shots Hit Robots 41 | 6 4 31 Core Hits 33 | 3 21 9 Critical Kills . | . . . Critical Parts Destroyed . | . . . Critical Strikes . | . . . Melee Attacks 14 | . . 14 Impact . | . . . Slashing 14 | . . 14 Piercing . | . . . Sneak Attacks . | . . . Combat Hostiles . | . . . Follow-up Attacks . | . . . Damage Inflicted 2312 | 90 1345 877 Guns 90 | 90 . . Cannons 558 | . . 558 Explosions 1522 | . 1345 177 Melee 142 | . . 142 Ramming . | . . . Kinetic 541 | 39 . 502 Thermal 85 | 51 34 . Explosive 1435 | . 1258 177 Electromagnetic 109 | . 53 56 Impact . | . . . Slashing 142 | . . 142 Piercing . | . . . Highest Corruption . | . . . Average Corruption . | . . . Corruption Purged . | . . . Corruption Blocked . | . . . Overload Shots . | . . . Overflow Damage 50 | . 50 . Projectiles . | . . . Explosions 50 | . 50 . Melee . | . . . Knockbacks 7 | . . 7 Impact . | . . . Kinetic 6 | . . 6 Secondary 1 | . . 1 Self-Inflicted Damage 116 | . 116 . Shots 4 | . 4 . Rammed . | . . . Targets Rammed . | . . . Kicked . | . . . Crushed . | . . . Highest Temperature 27 | 27 20 . Average Temperature 10 | 11 8 . Received Heat Transfer 114 | . 24 90 Siege Activations . | . . . Martial Activations . | . . . Shielding Activations . | . . . Robots Disrupted . | . . . Combat Hostiles . | . . . Robots Corrupted . | . . . Combat Hostiles . | . . . Parts Fried . | . . . Impact Corruptions . | . . . Robots Melted . | . . . Combat Hostiles . | . . . Parts Melted . | . . . Heat Transferred 148 | 148 . . Parts Sabotaged . | . . . Parts Stolen . | . . . Parts Stripped . | . . . Power Chain Reactions 1 | . 1 . Alert | -11 -10 -10 ------- Run | Yrd Mat Sub Maximum Alert Level 1 | . 1 . Low Security (%) 49 | 100 40 . Level 1 50 | . 59 . Level 2 . | . . . Level 3 . | . . . Level 4 . | . . . Level 5 . | . . . High Security . | . . . Max Security . | . . . Peak Influence 311 | 10 311 . Initial . | . . . Average 143 | 1 168 . Influence Increases 481 | 15 466 . Destroy 0b10 Robot/C 240 | . 240 . Destroy 0b10 Robot/NC 30 | 15 15 . Destroy Leader 40 | . 40 . Successful Hack 19 | . 19 . Disable Machine 45 | . 45 . Destroy Structure 107 | . 107 . Influence Decreases 481 | 15 238 228 Entered New Map 110 | . . 110 Time Decay 341 | 15 208 118 Lost Part 30 | . 30 . Squads Dispatched 1 | . 1 . Investigation . | . . . Extermination . | . . . Reinforcement 1 | . 1 . Assault . | . . . Garrison . | . . . Intercept . | . . . Searches Triggered . | . . . Construction Impeded . | . . . Haulers Reinforced . | . . . Active Scanning Responses . | . . . Cargo Convoy Interrupts . | . . . Stealth | -11 -10 -10 --------- Run | Yrd Mat Sub Distress Signals 2 | . 2 . Communications Jammed . | . . . Distress Signals . | . . . Times Spotted 26 | . 18 8 Peak Tracking Total 5 | . 5 2 Tactical Retreats . | . . . Traps | -11 -10 -10 ------- Run | Yrd Mat Sub Traps Triggered . | . . . Indirectly . | . . . Trap Hack Attempts . | . . . Triggered . | . . . Disarmed . | . . . Reprogrammed . | . . . Reused . | . . . Traps Extracted . | . . . Installed . | . . . Triggered . | . . . Machines | -11 -10 -10 ---------- Run | Yrd Mat Sub Machines Disabled 4 | . 3 1 Max in Single Turn 1 | . 1 1 Machines Repaired . | . . . Machines Dismantled . | . . . Machines Sabotaged . | . . . Overloaded Fab Kills . | . . . Hacking | -11 -10 -10 --------- Run | Yrd Mat Sub Machines Accessed 7 | . 4 3 Terminals 4 | . 4 . Fabricators . | . . . Repair Stations . | . . . Recycling Units . | . . . Scanalyzers . | . . . Garrison Access . | . . . Total Hacks 21 | . 15 6 Successful 13 | . 7 6 Failed 8 | . 8 . Catastrophic . | . . . Database Lockouts . | . . . Manual . | . . . Terminals 15 | . 15 . Fabricators . | . . . Repair Stations . | . . . Recycling Units . | . . . Scanalyzers . | . . . Garrison Access . | . . . Terminal Hacks 13 | . 7 6 Record 4 | . . 4 Robot Analysis 1 | . 1 . Prototype ID Bank 1 | . 1 . Open Door 1 | . . 1 Locate Traps 2 | . 2 . Hauler Manifests 1 | . 1 . Zone Layout 2 | . 2 . Proto ID Catalog 1 | . . 1 Fabricator Hacks . | . . . Repair Station Hacks . | . . . Recycling Unit Hacks . | . . . Scanalyzer . | . . . Garrison Access Hacks . | . . . Unauthorized Hacks . | . . . Terminals . | . . . Fabricators . | . . . Repair Stations . | . . . Recycling Units . | . . . Scanalyzers . | . . . Garrison Access . | . . . Data Cores Recovered . | . . . Used . | . . . Hacking Detections 3 | . 3 . Full Trace Events . | . . . Feedback Events . | . . . Feedback Blocked . | . . . Robot Schematics Acquired . | . . . Robots Built . | . . . Authchips . | . . . Time . | . . . Total Robot Build Rating . | . . . Part Schematics Acquired . | . . . Parts Built . | . . . Authchips . | . . . Time . | . . . Total Part Build Rating . | . . . Part Studies Acquired . | . . . Parts Repaired . | . . . Time . | . . . Parts Recycled . | . . . Recycled Matter . | . . . Retrieved Matter . | . . . Retrieved Components . | . . . Parts Scanalyzed . | . . . Part Schematics Acquired . | . . . Parts Damaged . | . . . Bothacking | -11 -10 -10 ------------ Run | Yrd Mat Sub Used RIF Installer . | . . . Robots Hacked . | . . . Non-combat . | . . . Combat . | . . . Robot Hacks Applied . | . . . Relay Couplers Released . | . . . Fabnet Peak Effective % . | . . . Robots Rewired . | . . . Allies Hacked . | . . . Hacks Repelled . | . . . Allies | -11 -10 -10 -------- Run | Yrd Mat Sub Total Allies . | . . . Largest Group . | . . . Highest-Rated Group . | . . . Highest-Rated Ally . | . . . Total Orders . | . . . Ally Attacks . | . . . Total Damage . | . . . Kills . | . . . Allies Corrupted . | . . . Allies Melted . | . . . Intel | -11 -10 -10 ------- Run | Yrd Mat Sub Active Infowar (turns) 3229 | 48 643 2538 Terrain 2538 | . . 2538 Seismic 691 | 48 643 . Robot Analysis Total 1 | . 1 . Derelict Logs Recovered 2 | . . 2 Drone Launches . | . . . Drone Recoveries . | . . . Exploration | -11 -10 -10 ------------- Run | Yrd Mat Sub Turns Passed 3652 | 117 657 2878 Spaces Moved 1403 | 56 378 969 Core 4 | 4 . . Treads 545 | 52 360 133 Legs . | . . . Wheels 854 | . 18 836 Hover . | . . . Flight . | . . . Fastest Speed 50 | 50 100 90 Average Speed 128 | 153 157 116 Slowest Speed 240 | 160 160 240 Overloaded Moves . | . . . Propulsion Burnouts . | . . . Robots Hopped . | . . . Potential Cave-ins . | . . . Cave-ins Triggered . | . . . Exploration Rate (%) 41 | 5 61 59 Regions Visited 2 Branch Regions 1 Pre-discovered Areas . | . . . Known Exits Taken . | . . . Unknown Exits Taken 2 | 1 1 . Scrap Searched 3 | . . 3 Spaces Dug . | . . . Terrain Destroyed 179 | . 145 34 Melee . | . . . Projectile 1 | . 1 . AOE 178 | . 144 34 Terrain Rammed . | . . . Walls Destroyed . | . . . Machines Disabled . | . . . Actions | -11 -10 -10 --------- Run | Yrd Mat Sub Total 3135 | 73 417 2645 Wait 1589 | 2 2 1585 Move 1401 | 55 377 969 Hop . | . . . Pick Up 20 | 4 11 5 Fast Attach 9 | 7 1 1 Attach 5 | . . 5 Detach . | . . . Swap 17 | . 5 12 Drop 5 | . 1 4 Fire 74 | 5 20 49 Melee 14 | . . 14 Ram . | . . . Kick . | . . . Crush . | . . . Escape Stasis . | . . . Rewire 1 | . . 1 Trap . | . . . Miscellaneous . | . . . Route ------- -11/Scrapyard -10/Materials (discovered 4 exits: [*Mat x2] / [*Min] / *Sub) -10/Subcaves (discovered 4 exits: *Mat x2 / Rec / [*Scr]) History --------- Turn | Location | Event 12 | -11/Scrapyard | Discovered new exit (range 16) 118 | -11/Scrapyard | Entered Materials 290 | -10/Materials | Discovered new exit (range 16) 309 | -10/Materials | Build established: Mutant 390 | -10/Materials | Discovered new exit (range 10) 573 | -10/Materials | Discovered new exit (range 16) 718 | -10/Materials | Derelicts attacked the area 768 | -10/Materials | Discovered new exit (range 8) 775 | -10/Materials | Entered Subcaves 776 | -10/Subcaves | Approached by a straggling Scientist 1107 | -10/Subcaves | A swath of the cavern ceiling suddenly collapsed 1294 | -10/Subcaves | Core integrity fell below 50% 1299 | -10/Subcaves | Shifting Twisted Machinery released Sub. Shrapnel Launcher 1305 | -10/Subcaves | Shifting Twisted Machinery released Battle Cannon 1389 | -10/Subcaves | Core integrity fell below 20% 1419 | -10/Subcaves | Lost 3 parts (1n2w) 1900 | -10/Subcaves | Learned Materials garrison access intel 2097 | -10/Subcaves | A swath of the cavern ceiling suddenly collapsed 3233 | -10/Subcaves | Discovered new exit (range 4) 3236 | -10/Subcaves | Learned 4 Materials zone layouts 3238 | -10/Subcaves | Visited Clippyterm 3242 | -10/Subcaves | Identified exit to Recycling 3242 | -10/Subcaves | Identified exit to Materials 3242 | -10/Subcaves | Learned Factory fabricator intel 3306 | -10/Subcaves | Visited 4L-MR0's lab 3323 | -10/Subcaves | Found Flightbrick 3628 | -10/Subcaves | Scientist uncovered a shortcut to Scraptown 3642 | -10/Subcaves | Disturbed a concealed Subdweller 3653 | -10/Subcaves | Destroyed by PN-3JW(R) with Subdweller Machine Gun Last Messages --------------- 03352_ Searching scrap... 03352_ Found Mak. Sword. 03352_ Found Sub. Optics. 03352_ Found 32 Matter. 03353_ Acquired 32 matter. 03355_ Dropped Lgt. EM Pulse Cannon. 03356_ Acquired Mak. Sword. RY-55X(c): "I think it's somewhere east of here" 03428_ Destroyed Scrap Shield. 03428_ OO-1QZ(R) destroyed. 03439_ Acquired 9 matter. 03442_ Acquired 5 matter. RY-55X(c): "I think it's somewhere southeast of here" 03499_ OK-X8T(u) builds Twisted Machinery. RY-55X(c): "I think it's somewhere east of here" 03544_ ZE-PEY(R) destroyed. 03546_ Acquired 35 matter. RY-55X(c): "We're getting close, I can feel it." 03580_ OK-X8T(u) builds Twisted Machinery. 03628_ RY-55X(c): "Hah, right again, there it is!" Map ----- +----------------------------------------------------+ | | | | | | | | | | | | | | | | | | | | | ?????????????????????????????????????????????????? | | ?????????????????????????????????????????????????? | | ?????????????????????????????????????????????????? | | ?????????????????????????????????????????????????? | | ?????????????????????????????????????????????????? | | ????#??????????????????????##????????????????????? | | ?????????????????????????????????????????????????? | | ?#??????????#????????????????????????????????????? | | ?##??#???????????????????????????????????????????? | | ????????????????#????????????????????????????????? | | ???????????????????#?????????##??????????????????? | | ???????????#?????????????????"#??????????????????? | | ??????#????#???????????????##&#??????????????????? | | ??????##??????????????????## #??????????????????? | | #####???????????##?????####" #???????????????????? | | #" ##????###### ####### @## ###?????????????????? | | " #??#### ## R< " ##????????????????? | | " ##?## ## ###?#??????#?????? | | #??# ## ### #??????????????? | | # ##?# #?### #### ##???#?????????? | | # ### ### # ### #?????????????? | | ## ### #?????????????? | | "" # # #?????????????? | | "" ## ## ##?????????????? | | ""&## ### #### ##??????????????? | | ""#####?## ###?# ##### ##?#?????????????? | | " ##?????## ##?# #???# #???##???????????? | | !&!##?????# #?# ##??## #?#??????????????? | | =& #???#?# #### #????? #???????????????? | | ##?????# ? #?????? #?#?????????????? | | ####??????## > ??????# #???????????????? | | #??????????# # ?????### ###???????????????? | | ?###???????########?#?????### #?????????????????? | | ????????????#???????????????# #?????????????????? | | #????#???????????#??????????? ?#??#????????????? | | ???????#???????????#????????? #?????????????????? | | ???#??????#????????????????#? #?? ??????????????? | | ?????????#??????????????????? ?????????????????? | | ?????????????#???????????????????????????????????? | | ????#????????????????????????????????????????????? | +----------------------------------------------------+ Best States ------------- Heat Dissipation 25 Energy Generation 10 Energy Capacity 250 Matter Stores 291 Matter Capacity 300 Sight Range 16 Terrain Scan Range 16 Terrain Scan Density 10 Evasion (%) 41 Targeting Accuracy 6 Recoil Reduction 2 Item Schematics ----------------- None Robot Schematics ------------------ None Fabricated ------------ Nothing Repaired ---------- Nothing Studied --------- None Alien Tech Used ----------------- None Achievements -------------- None Challenges ------------ None Game ------ Seed TargetingWardroneBooster Manual? 0 Play Time 00:18:03 Cumulative 493.7 hours Start 2026.09.15 @ 00:01:37 End 2026.09.15 @ 00:23:23 Sessions 1 Manual Loads 0 Difficulty Rogue Special Mode None Game No. 367 Rogue 367 Adventurer 0 Explorer 0 Win Type - Total 10 Types 4/0/4/2/0/0/0/0/0/0 Lore% 63 Gallery% 72 Achievement% 59 Wizard Run 0 Options --------- Layout 2 ASCII 0 Keyboard 1 Movement Vi Keybinds 0 Fullscreen 2 Font 32/Smallcaps Map View 77x44 Zoom Use 0% Tactical HUD 1 Map Filters NONE Filters NONE Steam 1 RUN: 0cf90313-5456-42a9-90bb-04854924798c